Cogmind - Beta 17.1 @@@ ROGUE MODE // 2026.08.28 @ 21:35:23 Player: Finn Result: Destroyed by S-10 Pest with Light Assault Rifle Performance ------------- Evolutions (0) 0 Regions Visited (1) 200 Robots Destroyed (8) 40 Value Destroyed (298) 298 Prototype IDs (0) 0 Alien Tech Used (0) 0 Bonus (0) 0 TOTAL SCORE: 538 Bonus ------- None Cogmind --------- Core Integrity 0/250 Matter 300/300 Energy 246/250 System Corruption 0% Temperature Cool (2) Movement Walking (120) Location -10/Materials Parts ------- > --- POWER (1) -------- Ion Engine > --- PROPULSION (2) --- Aluminum Leg Aluminum Leg > --- UTILITY (2) ------ (None) > --- WEAPON (2) ------- Small Laser > --- INVENTORY (5) ---- (None) Peak State ------------ > --- POWER ------------ Light Ion Engine > --- PROPULSION ------- Aluminum Leg Aluminum Leg > --- UTILITY ---------- (None) > --- WEAPON ----------- Medium Laser Small Laser > --- INVENTORY -------- (None) [Rating: 5] Favorites ----------- Power Ion Engine Engine Ion Engine Propulsion Aluminum Leg Leg Aluminum Leg Utility None Weapon Small Laser Energy Gun Small Laser Build | -11 -10 ------- Run | Yrd Mat Slots Evolved . | . . Power . | . . Propulsion . | . . Utility . | . . Weapon . | . . Parts Attached 9 | 5 4 Power 2 | 1 1 Engine 2 | 1 1 Core . | . . Reactor . | . . Propulsion 4 | 2 2 Treads . | . . Leg 4 | 2 2 Wheel . | . . Hover . | . . Flight . | . . Utility . | . . Device . | . . Storage . | . . Processor . | . . Hackware . | . . Protection . | . . Artifact . | . . Weapon 3 | 2 1 Energy Gun 3 | 2 1 Energy Cannon . | . . Ballistic Gun . | . . Ballistic Cannon . | . . Launcher . | . . Special Weapon . | . . Impact Weapon . | . . Slashing Weapon . | . . Piercing Weapon . | . . Special Melee Weapon . | . . Unidentified Prototypes . | . . Parts Lost 4 | . 4 Power 1 | . 1 Propulsion 1 | . 1 Utility . | . . Weapon 2 | . 2 Highest Loss Streak 4 | . 4 To Critical Strikes . | . . Average Backups . | . . Power . | . . Propulsion . | . . Utility . | . . Weapon . | . . Tool/Special . | . . Unused Backups . | . . Power . | . . Propulsion . | . . Utility . | . . Weapon . | . . Tool/Special . | . . Average Slot Usage (%) 44 | . 44 Engine 9 | . 9 Leg 24 | . 24 Energy Gun 9 | . 9 Peak Build Rating 5 | 5 5 Average Rating 3 | 3 3 On Entrance 2 | . 5 Avg Prop Armor Cover (%) . | . . Naked Turns . | . . Heaviest Build 6 | 6 6 Greatest Support 20 | 20 20 Greatest Overweight (x) . | . . Average Overweight (x) . | . . Largest Inventory Capacity 5 | 5 5 Average Capacity 5 | 5 5 Most Carried 3 | 3 2 Average Carried . | . . Final Capacity 5 | 5 5 Final Carried . | . . Class Distribution -------------------- 100% | Mutant Dominant Class ---------------- Mutant | -10/Materials Resources | -11 -10 ----------- Run | Yrd Mat Matter Collected 302 | 169 133 Remotely . | . . Salvage Created 291 | . 291 Parts 10 | . 10 Haulers Intercepted . | . . Recyclers Shooed . | . . Parts Field Recycled . | . . Retrieved Matter . | . . Parts Self-Destructed . | . . Prevented . | . . Parts Restored . | . . Kills | -11 -10 ------- Run | Yrd Mat Combat Hostiles Destroyed 8 | . 8 Melee 1 | . 1 Guns 7 | . 7 Classes Destroyed 1 | . 1 Grunt 8 | . 8 Best Kill Streak 3 | . 3 Combat Bots Only 3 | . 3 Max Kills in Single Turn 1 | . 1 Gunslinging . | . . Exploded . | . . Melee 1 | . 1 Uniques/NPCs Destroyed . | . . Combat | -11 -10 -------- Run | Yrd Mat Hostile Shots Fired 76 | . 76 Missed 20 | . 20 Hits 56 | . 56 Projectile 56 | . 56 Critical Strikes 2 | . 2 Damage Taken 651 | . 651 Core 254 | . 254 Absorbed by Shields . | . . Core Remaining (%) 100 | 100 . Volleys Fired 46 | . 46 Largest 2 | . 2 Hottest 90 | . 90 Shots Fired 59 | . 59 Gun 59 | . 59 Cannon . | . . Launcher . | . . Special . | . . Kinetic . | . . Thermal 59 | . 59 Explosive . | . . Electromagnetic . | . . Robot Hit Streak 7 | . 7 Robot Miss Streak 3 | . 3 Penetration Max . | . . Secondary Targets . | . . Shots Hit Robots 38 | . 38 Core Hits 20 | . 20 Critical Kills . | . . Critical Parts Destroyed . | . . Critical Strikes . | . . Melee Attacks . | . . Impact . | . . Slashing . | . . Piercing . | . . Sneak Attacks . | . . Combat Hostiles . | . . Follow-up Attacks . | . . Damage Inflicted 470 | . 470 Guns 451 | . 451 Cannons . | . . Explosions . | . . Melee . | . . Ramming 19 | . 19 Kinetic . | . . Thermal 451 | . 451 Explosive . | . . Electromagnetic . | . . Impact . | . . Slashing . | . . Piercing . | . . Highest Corruption . | . . Average Corruption . | . . Corruption Purged . | . . Corruption Blocked . | . . Overload Shots . | . . Overflow Damage . | . . Projectiles . | . . Explosions . | . . Melee . | . . Knockbacks . | . . Impact . | . . Kinetic . | . . Secondary . | . . Self-Inflicted Damage . | . . Shots . | . . Rammed . | . . Targets Rammed 21 | . 21 Kicked 21 | . 21 Crushed . | . . Highest Temperature 504 | . 504 Average Temperature 253 | . 253 Received Heat Transfer 390 | . 390 Effects 9 | . 9 Shutdowns 3 | . 3 Interference 1 | . 1 Matter Decay 1 | . 1 Damage (major) 4 | . 4 Siege Activations . | . . Martial Activations . | . . Shielding Activations . | . . Robots Disrupted . | . . Combat Hostiles . | . . Robots Corrupted . | . . Combat Hostiles . | . . Parts Fried . | . . Impact Corruptions . | . . Robots Melted . | . . Combat Hostiles . | . . Parts Melted 4 | . 4 Heat Transferred 1202 | . 1202 Parts Sabotaged . | . . Parts Stolen . | . . Parts Stripped . | . . Power Chain Reactions . | . . Alert | -11 -10 ------- Run | Yrd Mat Maximum Alert Level . | . . Low Security (%) 100 | 100 100 Level 1 . | . . Level 2 . | . . Level 3 . | . . Level 4 . | . . Level 5 . | . . High Security . | . . Max Security . | . . Peak Influence 60 | . 60 Initial . | . . Average 13 | . 14 Influence Increases 200 | . 200 Destroy 0b10 Robot/C 160 | . 160 Destroy Leader 40 | . 40 Influence Decreases 188 | . 188 Time Decay 148 | . 148 Lost Part 40 | . 40 Squads Dispatched 2 | . 2 Investigation 1 | . 1 Extermination . | . . Reinforcement 1 | . 1 Assault . | . . Garrison . | . . Intercept . | . . Searches Triggered . | . . Construction Impeded . | . . Haulers Reinforced . | . . Active Scanning Responses . | . . Cargo Convoy Interrupts . | . . Stealth | -11 -10 --------- Run | Yrd Mat Distress Signals . | . . Communications Jammed . | . . Distress Signals . | . . Times Spotted 16 | . 16 Peak Tracking Total 4 | . 4 Tactical Retreats . | . . Traps | -11 -10 ------- Run | Yrd Mat Traps Triggered 1 | . 1 Indirectly . | . . Trap Hack Attempts . | . . Triggered . | . . Disarmed . | . . Reprogrammed . | . . Reused . | . . Traps Extracted . | . . Installed . | . . Triggered . | . . Machines | -11 -10 ---------- Run | Yrd Mat Machines Disabled . | . . Max in Single Turn . | . . Machines Repaired . | . . Machines Dismantled . | . . Machines Sabotaged . | . . Overloaded Fab Kills . | . . Hacking | -11 -10 --------- Run | Yrd Mat Machines Accessed 1 | . 1 Terminals . | . . Fabricators . | . . Repair Stations 1 | . 1 Recycling Units . | . . Scanalyzers . | . . Garrison Access . | . . Total Hacks 1 | . 1 Successful . | . . Failed 1 | . 1 Catastrophic . | . . Database Lockouts . | . . Manual . | . . Terminals . | . . Fabricators . | . . Repair Stations 1 | . 1 Recycling Units . | . . Scanalyzers . | . . Garrison Access . | . . Terminal Hacks . | . . Fabricator Hacks . | . . Repair Station Hacks . | . . Recycling Unit Hacks . | . . Scanalyzer . | . . Garrison Access Hacks . | . . Unauthorized Hacks . | . . Terminals . | . . Fabricators . | . . Repair Stations . | . . Recycling Units . | . . Scanalyzers . | . . Garrison Access . | . . Data Cores Recovered . | . . Used . | . . Hacking Detections 1 | . 1 Full Trace Events . | . . Feedback Events . | . . Feedback Blocked . | . . Robot Schematics Acquired . | . . Robots Built . | . . Authchips . | . . Time . | . . Total Robot Build Rating . | . . Part Schematics Acquired . | . . Parts Built . | . . Authchips . | . . Time . | . . Total Part Build Rating . | . . Part Studies Acquired . | . . Parts Repaired . | . . Time . | . . Parts Recycled . | . . Recycled Matter . | . . Retrieved Matter . | . . Retrieved Components . | . . Parts Scanalyzed . | . . Part Schematics Acquired . | . . Parts Damaged . | . . Bothacking | -11 -10 ------------ Run | Yrd Mat Used RIF Installer . | . . Robots Hacked . | . . Non-combat . | . . Combat . | . . Robot Hacks Applied . | . . Relay Couplers Released . | . . Fabnet Peak Effective % . | . . Robots Rewired . | . . Allies Hacked . | . . Hacks Repelled . | . . Allies | -11 -10 -------- Run | Yrd Mat Total Allies . | . . Largest Group . | . . Highest-Rated Group . | . . Highest-Rated Ally . | . . Total Orders . | . . Ally Attacks . | . . Total Damage . | . . Kills . | . . Allies Corrupted . | . . Allies Melted . | . . Intel | -11 -10 ------- Run | Yrd Mat Active Infowar (turns) . | . . Robot Analysis Total . | . . Derelict Logs Recovered . | . . Drone Launches . | . . Drone Recoveries . | . . Exploration | -11 -10 ------------- Run | Yrd Mat Turns Passed 642 | 60 582 Spaces Moved 363 | 49 314 Core 12 | 12 . Treads . | . . Legs 351 | 37 314 Wheels . | . . Hover . | . . Flight . | . . Fastest Speed 50 | 50 120 Average Speed 117 | 102 120 Slowest Speed 120 | 120 120 Overloaded Moves . | . . Propulsion Burnouts . | . . Robots Hopped . | . . Potential Cave-ins . | . . Cave-ins Triggered . | . . Exploration Rate (%) 26 | 3 50 Regions Visited 1 Branch Regions . Pre-discovered Areas . | . . Known Exits Taken . | . . Unknown Exits Taken 1 | 1 . Scrap Searched . | . . Spaces Dug . | . . Terrain Destroyed . | . . Melee . | . . Projectile . | . . AOE . | . . Terrain Rammed . | . . Walls Destroyed . | . . Machines Disabled . | . . Actions | -11 -10 --------- Run | Yrd Mat Total 515 | 58 457 Wait 67 | . 67 Move 362 | 48 314 Hop . | . . Pick Up 9 | 5 4 Fast Attach . | . . Attach 9 | 5 4 Detach . | . . Swap . | . . Drop 1 | . 1 Fire 46 | . 46 Melee . | . . Ram . | . . Kick 21 | . 21 Crush . | . . Escape Stasis . | . . Rewire . | . . Trap . | . . Miscellaneous . | . . Route ------- -11/Scrapyard -10/Materials (discovered 2 exits: [*Mat] / [*Min]) History --------- Turn | Location | Event 7 | -11/Scrapyard | Discovered new exit (range 16) 61 | -11/Scrapyard | Entered Materials 215 | -10/Materials | Core integrity fell below 50% 229 | -10/Materials | Lost 4 parts (1p1n2w) 296 | -10/Materials | Discovered new exit (range 7) 309 | -10/Materials | Build established: Mutant 438 | -10/Materials | Discovered new exit (range 14) 470 | -10/Materials | Core integrity fell below 20% 643 | -10/Materials | Destroyed by S-10 Pest with Light Assault Rifle Last Messages --------------- 00297_ K-01 Serf cleans the Machine. 00304_ Connecting with Repair Station... 00304_ Current location identified: Materials 00315_ K-01 Serf collects debris. 00322_ ALERT: Hostiles spotted, dispatching reinforcements to Terminal M004. 00348_ Acquired Aluminum Leg. 00351_ Dropped Aluminum Leg. 00356_ Acquired Ion Engine. 00437_ Triggered Alarm Trap. 00437_ An alarm sounds. 00437_ ALERT: Alarm triggered, dispatching investigation squad. 00438_ EXIT=FOUND 00458_ Acquired Sml. Laser. 00470_ G-34 Mercenary destroyed. 00482_ Acquired 40 matter. 00511_ Connecting with Terminal... 00618_ Kicked T-07 Excavator out of the way. 00636_ G-34 Mercenary destroyed. Map ----- +----------------------------------------------------+ | | | | | ?????????????????????????????????????????????????? | | ?????????????????????????????????????????????????? | | ?????????????????????????????????????????????????? | | #####????????????????????????????????????????????? | | #????????????????????????????????????????????? | | #?????????????###########????????????????????? | | " ############### #????????????????????? | | """ # # # """ #????????????????????? | | """ # # # "" """ #????????????????????? | | """ # %#%% # """ """ #????????????????????? | | "" # " +%% / """ """ #????????????????????? | | """ # """ !#%% # """ """ ####### ??????? | | "" # ! """"" # # + ??????? | | "" # """"" # # ####### ! ??????? | | " #? """ # ###########????????????????????? | | #?######### # #???????????????????????? | | ##+############ # """#???????????????????????? | | + """#???????????????????????? | | # """#???????????????????????? | | # #???????????????????????? | | ##+########### #! #??????##### s?????????? | | # #??# ############ s s "????????? | | # #??# %u ! ????????? | | # #??# u @ ????????? | | # ! #??# w############# ????????? | | ##+########### #???????????????? ??????????? | | #??????????????????????????????? | | #?######???????????????????????? | | " #? #???????????????????????? | | " ######### # #???????????????????????? | | ## # # """ #???????????????????????? | | ## T + + """ #???????????????????????? | | " ## # # """ #???????????????????????? | | " ## # # #???????????????????????? | | " ## # #?######???????????????????????? | | ## # #??????????????????????????????? | | ######### #??????????????????????????????? | | ##### #???????# #??????????????????????????????? | | ????? #???????# #??????????????????????????????? | | ????? #???????# #??????????????????????????????? | | #####+###?????# #??????????????????????????????? | | #?????# #??????????????????????????????? | | """ #?????# #??????????????????????????????? | | """ #?????# #??????????????????????????????? | | """ #?????# #??????????????????????????????? | | #?????# ??????????????????????????????? | | " #?????? ???????????????????????????????? | | T #????????????????????????????????????????? | +----------------------------------------------------+ Best States ------------- Heat Dissipation 25 Energy Generation 10 Energy Capacity 250 Matter Stores 300 Matter Capacity 300 Sight Range 16 Terrain Scan Density 10 Evasion (%) 55 Item Schematics ----------------- None Robot Schematics ------------------ None Fabricated ------------ Nothing Repaired ---------- Nothing Studied --------- None Alien Tech Used ----------------- None Achievements -------------- None Challenges ------------ None Game ------ Seed SeismicActuatorBiocell Manual? 0 Play Time 00:07:14 Cumulative 17.0 hours Start 2026.08.28 @ 17:44:38 End 2026.08.28 @ 21:35:23 Sessions 1 Manual Loads 0 Difficulty Rogue Special Mode None Game No. 31 Rogue 14 Adventurer 15 Explorer 2 Win Type - Total 0 Types 0/0/0/0/0/0/0/0/0/0 Lore% 13 Gallery% 18 Achievement% 13 Wizard Run 0 Options --------- Layout 1 ASCII 0 Keyboard 0 Movement Mouse Keybinds 0 Fullscreen 1 Font 24/Smallcaps Map View 50x35 Zoom Use 0% Tactical HUD 1 Map Filters NONE Filters NONE Steam 1 RUN: d79f3026-ca17-4bba-894a-78e0c5af9c9d